[Event "FIDE Grand Swiss 2023"]
[Site "Villa Marina, Douglas, Isle of Man, Isle Of Man"]
[Date "2023.11.02"]
[Round "8.48"]
[White "Santos Latasa, Jaime"]
[Black "Iturrizaga Bonelli, Eduardo"]
[Result "1/2-1/2"]
[TimeControl "40/90 + 30 + 30s/move"]
[WhiteFideId "2293307"]
[BlackFideId "3901211"]
[WhiteElo "2650"]
[BlackElo "2615"]

1. e4 {[%clk 01:40:57]} {[%emt 00:00:03]} e5 {[%clk 01:40:48]} {[%emt
00:00:12]} 2. Nf3 {[%clk 01:41:13]} {[%emt 00:00:14]} Nc6 {[%clk 01:41:12]}
{[%emt 00:00:06]} 3. Bb5 {[%clk 01:40:09]} {[%emt 00:01:34]} Bc5 {[%clk
01:40:22]} {[%emt 00:01:20]} 4. c3 {[%clk 01:38:07]} {[%emt 00:02:33]} Nf6
{[%clk 01:40:05]} {[%emt 00:00:46]} 5. d4 {[%clk 01:37:14]} {[%emt 00:01:22]}
exd4 {[%clk 01:39:55]} {[%emt 00:00:40]} 6. e5 {[%clk 01:37:30]} {[%emt
00:00:14]} Nd5 {[%clk 01:40:06]} {[%emt 00:00:19]} 7. O-O {[%clk 01:37:48]}
{[%emt 00:00:13]} Be7 {[%clk 01:37:19]} {[%emt 00:03:17]} 8. a4 {[%clk
01:37:48]} {[%emt 00:00:30]} a5 {[%clk 00:55:17]} {[%emt 00:42:33]} 9. Nxd4
{[%clk 01:14:42]} {[%emt 00:23:36]} O-O {[%clk 00:46:31]} {[%emt 00:09:16]} 10.
Nf5 {[%clk 01:02:53]} {[%emt 00:12:18]} d6 {[%clk 00:45:41]} {[%emt 00:01:20]}
11. Nxe7+ {[%clk 01:02:29]} {[%emt 00:00:55]} Ncxe7 {[%clk 00:45:55]} {[%emt
00:00:16]} 12. c4 {[%clk 01:00:12]} {[%emt 00:02:47]} c6 {[%clk 00:22:25]}
{[%emt 00:24:01]} 13. cxd5 {[%clk 00:59:30]} {[%emt 00:01:12]} cxb5 {[%clk
00:22:50]} {[%emt 00:00:05]} 14. Bg5 {[%clk 00:57:51]} {[%emt 00:02:08]} h6
{[%clk 00:18:39]} {[%emt 00:04:40]} 15. exd6 {[%clk 00:55:53]} {[%emt
00:02:29]} Qxd6 {[%clk 00:18:59]} {[%emt 00:00:10]} 16. Bxe7 {[%clk 00:56:16]}
{[%emt 00:00:07]} Qxe7 {[%clk 00:19:25]} {[%emt 00:00:04]} 17. d6 {[%clk
00:55:13]} {[%emt 00:01:34]} Qd7 {[%clk 00:17:13]} {[%emt 00:02:38]} 18. Nc3
{[%clk 00:52:52]} {[%emt 00:02:54]} bxa4 {[%clk 00:17:19]} {[%emt 00:00:24]} 19.
Nxa4 {[%clk 00:41:29]} {[%emt 00:11:52]} Qb5 {[%clk 00:16:30]} {[%emt
00:01:19]} 20. Nc3 {[%clk 00:33:02]} {[%emt 00:08:58]} Qc6 {[%clk 00:13:21]}
{[%emt 00:03:39]} 21. Qd4 {[%clk 00:32:37]} {[%emt 00:00:55]} Be6 {[%clk
00:11:45]} {[%emt 00:02:05]} 22. Rfd1 {[%clk 00:32:23]} {[%emt 00:00:44]} Rfd8
{[%clk 00:11:05]} {[%emt 00:01:11]} 23. Ne4 {[%clk 00:29:36]} {[%emt 00:03:17]}
Qc4 {[%clk 00:03:58]} {[%emt 00:07:37]} 24. Qe3 {[%clk 00:26:05]} {[%emt
00:04:01]} b6 {[%clk 00:02:13]} {[%emt 00:02:15]} 25. Rd4 {[%clk 00:25:16]}
{[%emt 00:01:18]} Qb5 {[%clk 00:02:38]} {[%emt 00:00:06]} 26. Qd2 {[%clk
00:24:41]} {[%emt 00:01:05]} Rac8 {[%clk 00:02:51]} {[%emt 00:00:17]} 27. h3
{[%clk 00:24:48]} {[%emt 00:00:23]} Rc4 {[%clk 00:01:21]} {[%emt 00:02:01]} 28.
Rd1 {[%clk 00:23:46]} {[%emt 00:01:31]} Qc6 {[%clk 00:00:50]} {[%emt 00:01:01]}
29. Qe3 {[%clk 00:23:01]} {[%emt 00:01:15]} Rxd4 {[%clk 00:00:38]} {[%emt
00:00:42]} 30. Qxd4 {[%clk 00:23:16]} {[%emt 00:00:15]} Rd7 {[%clk 00:00:32]}
{[%emt 00:00:37]} 31. Ng3 {[%clk 00:17:43]} {[%emt 00:06:03]} Qb5 {[%clk
00:00:53]} {[%emt 00:00:10]} 32. Kh2 {[%clk 00:17:22]} {[%emt 00:00:50]} Rd8
{[%clk 00:01:01]} {[%emt 00:00:22]} 33. Rd2 {[%clk 00:14:48]} {[%emt 00:03:04]}
Rc8 {[%clk 00:00:48]} {[%emt 00:00:42]} 34. f4 {[%clk 00:13:09]} {[%emt
00:02:09]} Rc4 {[%clk 00:00:50]} {[%emt 00:00:28]} 35. Qe3 {[%clk 00:13:34]}
{[%emt 00:00:06]} Bd7 {[%clk 00:00:41]} {[%emt 00:00:40]} 36. f5 {[%clk
00:12:01]} {[%emt 00:02:02]} Rc5 {[%clk 00:01:07]} {[%emt 00:00:04]} 37. f6
{[%clk 00:10:20]} {[%emt 00:02:11]} Re5 {[%clk 00:01:34]} {[%emt 00:00:03]} 38.
Qf4 {[%clk 00:09:28]} {[%emt 00:01:21]} g5 {[%clk 00:01:59]} {[%emt 00:00:05]}
39. Qf3 {[%clk 00:09:20]} {[%emt 00:00:38]} Qb4 {[%clk 00:00:37]} {[%emt
00:01:53]} 40. Qh5 {[%clk 00:06:46]} {[%emt 00:03:04]} Qh4 {[%clk 00:01:01]}
{[%emt 00:00:04]} 41. Qxh4 {[%clk 00:07:02]} {[%emt 00:00:15]} gxh4 {[%clk
00:01:26]} {[%emt 00:00:06]} 42. Ne2 {[%clk 00:07:25]} {[%emt 00:00:06]} Kf8
{[%clk 00:47:08]} {[%emt 00:04:48]} 43. Nc3 {[%clk 00:54:47]} {[%emt 00:03:08]}
Ke8 {[%clk 00:46:03]} {[%emt 00:01:34]} 44. Rd4 {[%clk 00:51:44]} {[%emt
00:03:34]} Bc6 {[%clk 00:30:48]} {[%emt 00:15:45]} 45. Kg1 {[%clk 00:48:25]}
{[%emt 00:03:50]} Kd7 {[%clk 00:21:37]} {[%emt 00:09:41]} 46. Rxh4 {[%clk
00:46:05]} {[%emt 00:02:49]} b5 {[%clk 00:17:55]} {[%emt 00:04:12]} 47. Kf2
{[%clk 00:41:55]} {[%emt 00:04:41]} Rf5+ {[%clk 00:07:02]} {[%emt 00:11:23]} 48.
Ke3 {[%clk 00:40:13]} {[%emt 00:02:12]} b4 {[%clk 00:06:17]} {[%emt 00:01:15]}
49. Ne2 {[%clk 00:39:37]} {[%emt 00:01:06]} Bxg2 {[%clk 00:03:58]} {[%emt
00:02:49]} 50. Rxh6 {[%clk 00:37:52]} {[%emt 00:02:14]} Rf3+ {[%clk 00:03:57]}
{[%emt 00:00:31]} 51. Kd4 {[%clk 00:38:11]} {[%emt 00:00:12]} a4 {[%clk
00:02:54]} {[%emt 00:01:33]} 52. Rh5 {[%clk 00:32:16]} {[%emt 00:06:25]} Bf1
{[%clk 00:03:12]} {[%emt 00:00:12]} 53. Nc1 {[%clk 00:32:30]} {[%emt 00:00:16]}
Rxf6 {[%clk 00:00:33]} {[%emt 00:03:10]} 54. Kc5 {[%clk 00:28:46]} {[%emt
00:04:13]} Rf4 {[%clk 00:00:50]} {[%emt 00:00:12]} 55. b3 {[%clk 00:29:09]}
{[%emt 00:00:08]} axb3 {[%clk 00:00:46]} {[%emt 00:00:33]} 56. Nxb3 {[%clk
00:29:24]} {[%emt 00:00:16]} Bc4 {[%clk 00:00:45]} {[%emt 00:00:30]} 1/2-1/2

[Event "FIDE Grand Swiss 2023"]
[Site "Villa Marina, Douglas, Isle of Man, Isle Of Man"]
[Date "2023.11.02"]
[Round "8.49"]
[White "Idani, Pouya"]
[Black "Dardha, Daniel"]
[Result "1/2-1/2"]
[TimeControl "40/90 + 30 + 30s/move"]
[WhiteFideId "12510130"]
[BlackFideId "240990"]
[WhiteElo "2633"]
[BlackElo "2580"]

1. e4 {[%clk 01:40:58]} e5 {[%clk 01:40:53]} {[%emt 00:00:08]} 2. Nf3 {[%clk
01:41:24]} {[%emt 00:00:04]} Nc6 {[%clk 01:41:19]} {[%emt 00:00:04]} 3. Bc4
{[%clk 01:41:49]} {[%emt 00:00:05]} d6 {[%clk 01:40:46]} {[%emt 00:01:03]} 4.
d4 {[%clk 01:40:37]} {[%emt 00:01:42]} Nf6 {[%clk 01:38:54]} {[%emt 00:02:22]}
5. dxe5 {[%clk 01:38:47]} {[%emt 00:02:20]} dxe5 {[%clk 01:38:39]} {[%emt
00:00:45]} 6. Qxd8+ {[%clk 01:38:24]} Nxd8 {[%clk 01:38:10]} {[%emt 00:01:52]}
7. Nfd2 {[%clk 01:34:59]} {[%emt 00:03:56]} Ne6 {[%clk 01:33:53]} {[%emt
00:04:45]} 8. f3 {[%clk 01:35:08]} {[%emt 00:00:21]} Bc5 {[%clk 01:31:05]}
{[%emt 00:03:18]} 9. Nb3 {[%clk 01:26:10]} {[%emt 00:09:29]} Bb6 {[%clk
01:31:11]} {[%emt 00:00:24]} 10. Nc3 {[%clk 01:26:24]} {[%emt 00:00:15]} c6
{[%clk 01:29:05]} {[%emt 00:02:36]} 11. Na4 {[%clk 01:23:14]} {[%emt 00:03:40]}
Bc7 {[%clk 01:19:39]} {[%emt 00:09:55]} 12. Nac5 {[%clk 01:17:50]} {[%emt
00:05:56]} Nxc5 {[%clk 01:05:11]} {[%emt 00:14:58]} 13. Nxc5 {[%clk 01:18:14]}
{[%emt 00:00:06]} Nd7 {[%clk 01:05:15]} {[%emt 00:00:25]} 14. Nd3 {[%clk
01:18:12]} {[%emt 00:00:33]} Nf8 {[%clk 01:02:04]} {[%emt 00:03:41]} 15. a4
{[%clk 01:15:15]} {[%emt 00:03:27]} Be6 {[%clk 01:01:09]} {[%emt 00:01:25]} 16.
b3 {[%clk 01:13:01]} {[%emt 00:02:44]} Bxc4 {[%clk 00:59:50]} {[%emt 00:01:49]}
17. bxc4 {[%clk 01:13:27]} {[%emt 00:00:04]} O-O-O {[%clk 00:57:33]} {[%emt
00:02:46]} 18. Be3 {[%clk 01:13:48]} {[%emt 00:00:09]} a6 {[%clk 00:56:51]}
{[%emt 00:01:13]} 19. O-O-O {[%clk 01:08:00]} {[%emt 00:06:18]} Ne6 {[%clk
00:56:30]} {[%emt 00:00:51]} 20. c3 {[%clk 01:08:11]} {[%emt 00:00:19]} h5
{[%clk 00:54:31]} {[%emt 00:02:29]} 21. Kc2 {[%clk 01:07:44]} {[%emt 00:00:57]}
f6 {[%clk 00:51:54]} {[%emt 00:03:07]} 22. Nc5 {[%clk 01:05:26]} {[%emt
00:02:47]} Nxc5 {[%clk 00:51:00]} {[%emt 00:01:24]} 23. Bxc5 {[%clk 01:05:51]}
{[%emt 00:00:05]} Rxd1 {[%clk 00:50:18]} {[%emt 00:01:13]} 24. Rxd1 {[%clk
01:06:17]} {[%emt 00:00:04]} Rd8 {[%clk 00:50:40]} {[%emt 00:00:08]} 25. Rxd8+
{[%clk 01:06:42]} {[%emt 00:00:05]} Kxd8 {[%clk 00:51:01]} {[%emt 00:00:09]} 26.
h3 {[%clk 01:06:42]} {[%emt 00:00:30]} Kd7 {[%clk 00:50:53]} {[%emt 00:00:38]}
27. g4 {[%clk 01:07:07]} {[%emt 00:00:05]} g6 {[%clk 00:50:43]} {[%emt
00:00:40]} 28. Kd3 {[%clk 01:07:20]} {[%emt 00:00:17]} Ke6 {[%clk 00:51:04]}
{[%emt 00:00:09]} 29. Be3 {[%clk 01:07:38]} {[%emt 00:00:13]} Bd8 {[%clk
00:51:04]} {[%emt 00:00:29]} 30. Ke2 {[%clk 01:07:57]} {[%emt 00:00:11]} Be7
{[%clk 00:51:10]} {[%emt 00:00:23]} 1/2-1/2

[Event "FIDE Grand Swiss 2023"]
[Site "Villa Marina, Douglas, Isle of Man, Isle Of Man"]
[Date "2023.11.02"]
[Round "8.50"]
[White "Gurel, Ediz"]
[Black "Kollars, Dmitrij"]
[Result "1/2-1/2"]
[TimeControl "40/90 + 30 + 30s/move"]
[WhiteFideId "44507356"]
[BlackFideId "12909572"]
[WhiteElo "2514"]
[BlackElo "2633"]

1. e4 {[%clk 01:40:56]} {[%emt 00:00:03]} e5 {[%clk 01:40:56]} {[%emt
00:00:04]} 2. Nf3 {[%clk 01:41:18]} {[%emt 00:00:08]} Nc6 {[%clk 01:41:22]}
{[%emt 00:00:04]} 3. Bb5 {[%clk 01:41:41]} {[%emt 00:00:08]} a6 {[%clk
01:41:45]} {[%emt 00:00:06]} 4. Ba4 {[%clk 01:42:05]} {[%emt 00:00:07]} Nf6
{[%clk 01:42:06]} {[%emt 00:00:08]} 5. O-O {[%clk 01:42:20]} {[%emt 00:00:14]}
Be7 {[%clk 01:42:26]} {[%emt 00:00:10]} 6. Re1 {[%clk 01:42:35]} {[%emt
00:00:16]} b5 {[%clk 01:42:42]} {[%emt 00:00:14]} 7. Bb3 {[%clk 01:43:01]}
{[%emt 00:00:04]} O-O {[%clk 01:42:59]} {[%emt 00:00:12]} 8. d4 {[%clk
01:43:14]} {[%emt 00:00:18]} Nxd4 {[%clk 01:42:25]} {[%emt 00:01:03]} 9. Bxf7+
{[%clk 01:43:00]} {[%emt 00:00:45]} Rxf7 {[%clk 01:42:25]} {[%emt 00:00:30]} 10.
Nxe5 {[%clk 01:43:25]} {[%emt 00:00:05]} Rf8 {[%clk 01:41:21]} {[%emt
00:01:33]} 11. Qxd4 {[%clk 01:43:50]} {[%emt 00:00:06]} Bb7 {[%clk 01:37:05]}
{[%emt 00:04:45]} 12. Nc3 {[%clk 01:43:43]} {[%emt 00:00:39]} c5 {[%clk
01:31:03]} {[%emt 00:06:31]} 13. Qd1 {[%clk 01:43:45]} {[%emt 00:00:28]} d6
{[%clk 01:19:50]} {[%emt 00:11:44]} 14. Ng4 {[%clk 01:33:17]} {[%emt 00:10:58]}
Nxg4 {[%clk 01:17:03]} {[%emt 00:03:17]} 15. Qxg4 {[%clk 01:33:42]} {[%emt
00:00:06]} Bf6 {[%clk 01:16:21]} {[%emt 00:01:11]} 16. Bf4 {[%clk 01:13:36]}
{[%emt 00:20:36]} b4 {[%clk 01:11:34]} {[%emt 00:05:17]} 17. Ne2 {[%clk
00:43:59]} {[%emt 00:30:08]} Bxb2 {[%clk 00:47:32]} {[%emt 00:24:32]} 18. Rad1
{[%clk 00:44:04]} {[%emt 00:00:24]} Qc8 {[%clk 00:47:35]} {[%emt 00:00:27]} 19.
Qg3 {[%clk 00:36:49]} {[%emt 00:07:46]} Qe6 {[%clk 00:44:49]} {[%emt 00:03:14]}
20. Bxd6 {[%clk 00:34:16]} {[%emt 00:03:05]} Rfe8 {[%clk 00:40:11]} {[%emt
00:05:08]} 21. Bxc5 {[%clk 00:31:12]} {[%emt 00:03:35]} Bxe4 {[%clk 00:36:49]}
{[%emt 00:03:52]} 22. Bxb4 {[%clk 00:27:41]} {[%emt 00:04:01]} Qxa2 {[%clk
00:30:19]} {[%emt 00:07:00]} 23. Nc3 {[%clk 00:19:17]} {[%emt 00:08:54]} Bxc3
{[%clk 00:28:43]} {[%emt 00:02:06]} 24. Bxc3 {[%clk 00:19:44]} {[%emt
00:00:04]} Qf7 {[%clk 00:28:40]} {[%emt 00:00:30]} 25. Re2 {[%clk 00:19:11]}
{[%emt 00:01:05]} Rac8 {[%clk 00:24:47]} {[%emt 00:04:22]} 26. h4 {[%clk
00:15:09]} {[%emt 00:04:33]} Qg6 {[%clk 00:21:32]} {[%emt 00:03:44]} 27. Re3
{[%clk 00:13:49]} {[%emt 00:01:50]} Bf5 {[%clk 00:18:33]} {[%emt 00:03:30]} 28.
Rxe8+ {[%clk 00:13:35]} {[%emt 00:00:44]} Rxe8 {[%clk 00:18:58]} {[%emt
00:00:05]} 29. Qxg6 {[%clk 00:13:47]} {[%emt 00:00:18]} hxg6 {[%clk 00:18:14]}
{[%emt 00:01:14]} 30. Rd6 {[%clk 00:13:57]} {[%emt 00:00:20]} Re4 {[%clk
00:10:54]} {[%emt 00:07:50]} 31. Rxa6 {[%clk 00:08:46]} {[%emt 00:05:42]} Rxh4
{[%clk 00:11:10]} {[%emt 00:00:12]} 32. Ra8+ {[%clk 00:09:04]} {[%emt
00:00:13]} Kf7 {[%clk 00:10:35]} {[%emt 00:01:05]} 33. Ra7+ {[%clk 00:09:29]}
{[%emt 00:00:05]} Ke6 {[%clk 00:10:53]} {[%emt 00:00:09]} 34. Bxg7 {[%clk
00:07:49]} {[%emt 00:02:13]} Bxc2 {[%clk 00:11:17]} {[%emt 00:00:06]} 35. f3
{[%clk 00:08:09]} {[%emt 00:00:10]} Ra4 {[%clk 00:10:21]} {[%emt 00:01:26]} 36.
Rc7 {[%clk 00:08:34]} {[%emt 00:00:06]} Ra2 {[%clk 00:10:14]} {[%emt 00:00:36]}
37. Rc6+ {[%clk 00:06:38]} {[%emt 00:02:25]} Kf7 {[%clk 00:08:14]} {[%emt
00:02:30]} 38. Be5 {[%clk 00:06:42]} {[%emt 00:00:27]} Bd3 {[%clk 00:07:05]}
{[%emt 00:01:38]} 39. Rd6 {[%clk 00:06:18]} {[%emt 00:00:55]} Re2 {[%clk
00:06:57]} {[%emt 00:00:38]} 40. Bc3 {[%clk 00:06:28]} {[%emt 00:00:19]} Bf5
{[%clk 00:06:11]} {[%emt 00:01:15]} 41. g4 {[%clk 00:04:22]} {[%emt 00:02:37]}
Be6 {[%clk 00:03:13]} {[%emt 00:03:23]} 42. Bd2 {[%clk 00:03:37]} {[%emt
00:01:20]} Bb3 {[%clk 00:01:16]} {[%emt 00:02:27]} 43. Bg5 {[%clk 00:01:38]}
{[%emt 00:02:29]} Be6 {[%clk 00:50:00]} {[%emt 00:01:12]} 44. Rd4 {[%clk
00:50:39]} {[%emt 00:01:34]} Re5 {[%clk 00:46:10]} {[%emt 00:04:49]} 45. Rf4+
{[%clk 00:50:02]} {[%emt 00:01:08]} Kg8 {[%clk 00:45:24]} {[%emt 00:01:15]} 46.
Bf6 {[%clk 00:50:26]} {[%emt 00:00:07]} Re2 {[%clk 00:45:34]} {[%emt 00:00:19]}
47. Kf1 {[%clk 00:49:56]} {[%emt 00:01:01]} Rc2 {[%clk 00:45:43]} {[%emt
00:00:20]} 48. Rd4 {[%clk 00:48:12]} {[%emt 00:02:15]} Kf7 {[%clk 00:45:44]}
{[%emt 00:00:29]} 49. Bg5 {[%clk 00:48:12]} {[%emt 00:00:30]} Rc4 {[%clk
00:42:33]} {[%emt 00:03:40]} 50. Rd6 {[%clk 00:48:04]} {[%emt 00:00:38]} Rc5
{[%clk 00:42:39]} {[%emt 00:00:25]} 51. Be3 {[%clk 00:47:22]} {[%emt 00:01:12]}
Rd5 {[%clk 00:37:45]} {[%emt 00:05:25]} 52. Rc6 {[%clk 00:46:31]} {[%emt
00:01:20]} Rd3 {[%clk 00:35:00]} {[%emt 00:03:15]} 53. Ke2 {[%clk 00:46:02]}
{[%emt 00:00:59]} Rb3 {[%clk 00:35:17]} {[%emt 00:00:12]} 54. Rc7+ {[%clk
00:46:08]} {[%emt 00:00:25]} Ke8 {[%clk 00:35:10]} {[%emt 00:00:36]} 55. Bd4
{[%clk 00:44:51]} {[%emt 00:01:47]} Bd5 {[%clk 00:34:56]} {[%emt 00:00:44]} 56.
Bc3 {[%clk 00:44:15]} {[%emt 00:01:07]} Kd8 {[%clk 00:33:27]} {[%emt 00:01:58]}
57. Rc5 {[%clk 00:44:42]} {[%emt 00:00:04]} Ke7 {[%clk 00:31:32]} {[%emt
00:02:24]} 58. Rxd5 {[%clk 00:42:54]} {[%emt 00:02:20]} Rxc3 {[%clk 00:31:46]}
{[%emt 00:00:15]} 1/2-1/2

[Event "FIDE Grand Swiss 2023"]
[Site "Villa Marina, Douglas, Isle of Man, Isle Of Man"]
[Date "2023.11.02"]
[Round "8.51"]
[White "Henriquez Villagra, Cristobal"]
[Black "Parligras, Mircea-Emilian"]
[Result "0-1"]
[TimeControl "40/90 + 30 + 30s/move"]
[WhiteFideId "3409350"]
[BlackFideId "1204297"]
[WhiteElo "2630"]
[BlackElo "2561"]

1. d4 {[%clk 01:40:57]} {[%emt 00:00:02]} Nf6 {[%clk 01:40:46]} {[%emt
00:00:15]} 2. Nf3 {[%clk 01:41:21]} {[%emt 00:00:05]} d5 {[%clk 01:40:54]}
{[%emt 00:00:22]} 3. Bf4 {[%clk 01:41:45]} {[%emt 00:00:06]} c5 {[%clk
01:40:54]} {[%emt 00:00:30]} 4. e3 {[%clk 01:42:08]} {[%emt 00:00:07]} Nc6
{[%clk 01:41:08]} {[%emt 00:00:15]} 5. Be2 {[%clk 01:42:32]} {[%emt 00:00:07]}
Bg4 {[%clk 01:37:49]} {[%emt 00:03:49]} 6. Nbd2 {[%clk 01:27:51]} {[%emt
00:15:12]} e6 {[%clk 01:37:42]} {[%emt 00:00:36]} 7. O-O {[%clk 01:28:05]}
{[%emt 00:00:14]} Bd6 {[%clk 01:26:44]} {[%emt 00:11:31]} 8. dxc5 {[%clk
01:27:57]} {[%emt 00:00:38]} Bxc5 {[%clk 01:27:09]} {[%emt 00:00:05]} 9. c4
{[%clk 01:27:28]} {[%emt 00:00:59]} O-O {[%clk 01:27:11]} {[%emt 00:00:28]} 10.
Rc1 {[%clk 01:21:06]} {[%emt 00:06:51]} Bd6 {[%clk 01:24:08]} {[%emt 00:03:34]}
11. Bg5 {[%clk 01:20:02]} {[%emt 00:01:33]} Be7 {[%clk 01:23:51]} {[%emt
00:00:47]} 12. h3 {[%clk 01:07:41]} {[%emt 00:12:51]} Bh5 {[%clk 01:23:46]}
{[%emt 00:00:35]} 13. a3 {[%clk 01:07:01]} {[%emt 00:01:10]} Rc8 {[%clk
01:19:28]} {[%emt 00:04:48]} 14. Bf4 {[%clk 00:55:43]} {[%emt 00:11:47]} Bd6
{[%clk 01:16:54]} {[%emt 00:03:05]} 15. Bxd6 {[%clk 00:53:28]} {[%emt
00:02:45]} Qxd6 {[%clk 01:17:19]} {[%emt 00:00:06]} 16. b4 {[%clk 00:53:18]}
{[%emt 00:00:39]} Rfd8 {[%clk 01:11:15]} {[%emt 00:06:34]} 17. c5 {[%clk
00:48:07]} {[%emt 00:05:42]} Qe7 {[%clk 01:05:19]} {[%emt 00:06:25]} 18. Nd4
{[%clk 00:48:17]} {[%emt 00:00:21]} Bxe2 {[%clk 00:59:59]} {[%emt 00:05:50]} 19.
Qxe2 {[%clk 00:48:42]} {[%emt 00:00:05]} a5 {[%clk 00:53:23]} {[%emt 00:07:06]}
20. b5 {[%clk 00:42:18]} {[%emt 00:06:53]} Nxd4 {[%clk 00:42:46]} {[%emt
00:11:07]} 21. exd4 {[%clk 00:42:44]} {[%emt 00:00:04]} b6 {[%clk 00:43:09]}
{[%emt 00:00:08]} 22. Qe3 {[%clk 00:42:21]} {[%emt 00:00:53]} bxc5 {[%clk
00:42:30]} {[%emt 00:01:08]} 23. Rxc5 {[%clk 00:42:45]} {[%emt 00:00:05]} Nd7
{[%clk 00:28:52]} {[%emt 00:14:09]} 24. Rxd5 {[%clk 00:41:23]} {[%emt
00:01:53]} Nb6 {[%clk 00:29:15]} {[%emt 00:00:07]} 25. Rxd8+ {[%clk 00:40:26]}
{[%emt 00:01:26]} Qxd8 {[%clk 00:29:36]} {[%emt 00:00:09]} 26. Re1 {[%clk
00:30:22]} {[%emt 00:10:35]} a4 {[%clk 00:25:11]} {[%emt 00:04:55]} 27. Qd3
{[%clk 00:28:00]} {[%emt 00:02:51]} h6 {[%clk 00:24:34]} {[%emt 00:01:08]} 28.
Nf3 {[%clk 00:25:36]} {[%emt 00:02:53]} Nd5 {[%clk 00:23:30]} {[%emt 00:01:34]}
29. Qd2 {[%clk 00:16:13]} {[%emt 00:09:53]} Rc3 {[%clk 00:23:00]} {[%emt
00:01:01]} 30. Rc1 {[%clk 00:16:20]} {[%emt 00:00:22]} Rxa3 {[%clk 00:22:25]}
{[%emt 00:01:05]} 31. Ne5 {[%clk 00:16:22]} {[%emt 00:00:28]} Rb3 {[%clk
00:21:40]} {[%emt 00:01:15]} 32. Rc5 {[%clk 00:15:29]} {[%emt 00:01:23]} Nb6
{[%clk 00:14:04]} {[%emt 00:08:06]} 33. Nc6 {[%clk 00:09:48]} {[%emt 00:06:11]}
Rb1+ {[%clk 00:09:29]} {[%emt 00:05:06]} 34. Kh2 {[%clk 00:06:13]} {[%emt
00:04:04]} Qf6 {[%clk 00:08:35]} {[%emt 00:01:25]} 35. f4 {[%clk 00:01:40]}
{[%emt 00:05:02]} a3 {[%clk 00:08:11]} {[%emt 00:00:54]} 36. f5 {[%clk
00:01:28]} {[%emt 00:00:43]} Rb2 {[%clk 00:07:32]} {[%emt 00:01:09]} 37. Rc2
{[%clk 00:01:50]} {[%emt 00:00:08]} a2 {[%clk 00:06:59]} {[%emt 00:01:03]} 0-1